bitfinex/quotes_SOLUSD_20241126
["timestamp","ask_amount","ask_price","bid_price","bid_amount"]
[1732644741055,4.3729,228.68,228.65,16.5175]
[1732644741257,4.3723,228.71,228.65,29.09338953]
[1732644741684,16.94818953,228.71,228.65,16.5175]
[1732644741859,12.57588953,228.67,228.56,20.8927]
[1732644742054,12.57588953,228.66,228.59,12.57588953]
[1732644742260,7.19666369,228.67,228.61,12.57588953]
[1732644742660,19.77255322,228.67,228.6,12.57588953]
[1732644743260,4.3733,228.66,228.59,12.57588953]
[1732644743881,27.88238953,228.66,228.58,12.57588953]
[1732644744087,12.57588953,228.64,228.57,12.57588953]
[1732644744383,12.57588953,228.65,228.57,12.57588953]
[1732644745080,4.3733,228.66,228.61,12.57588953]
[1732644745263,4.3733,228.66,228.6,12.57588953]
[1732644745657,4.3733,228.66,228.56,16.5175]
[1732644745658,12.57588953,228.65,228.58,12.57588953]
[1732644745877,12.57588953,228.64,228.56,16.5175]
[1732644746070,12.57588953,228.61,228.56,16.5175]
[1732644746270,12.57588953,228.6,228.56,16.5175]
[1732644747264,12.57588953,228.57,228.52,0.5249816]
[1732644747479,12.57588953,228.53,228.52,0.5249816]
[1732644747788,12.57588953,228.54,228.52,0.5249816]
[1732644747994,27.88708953,228.59,228.52,13.10087113]
[1732644748180,15.3112,228.59,228.52,13.10087113]
[1732644748483,27.88708953,228.59,228.52,0.5249816]
[1732644748701,12.57588953,228.58,228.52,0.5249816]
[1732644748864,27.88708953,228.59,228.52,13.10087113]
[1732644749071,15.3112,228.59,228.54,12.57588953]
[1732644749283,20.0,228.6,228.55,12.57588953]
[1732644749583,12.57588953,228.61,228.54,12.57588953]
[1732644749785,12.57588953,228.6,228.53,12.57588953]
[1732644750286,12.57588953,228.59,228.52,13.10087113]
[1732644750976,12.57588953,228.59,228.52,0.5249816]
[1732644751378,4.3748,228.58,228.52,0.5249816]
[1732644751987,12.57588953,228.57,228.52,0.5249816]
[1732644752171,12.57588953,228.55,228.52,0.5249816]
[1732644752380,8.09536155,228.55,228.52,0.5249816]
[1732644752578,8.09536155,228.55,228.38,10.9462]
[1732644752579,20.0,228.51,228.34,23.066]
[1732644752889,8.09536155,228.47,228.39,8.09536155]
[1732644753084,20.0,228.49,228.43,8.09536155]
[1732644753477,4.3767,228.48,228.36,36.7603462]
[1732644753786,4.3767,228.48,228.42,8.09536155]
[1732644754285,4.3767,228.48,228.42,12.65503744]
[1732644754870,4.3767,228.48,228.4,12.65503744]
[1732644755497,4.3767,228.48,228.44,12.65503744]
[1732644755677,12.65503744,228.52,228.44,12.65503744]
[1732644755879,18.80813439,228.56,228.47,12.65503744]
[1732644756196,6.20359411,228.58,228.36,27.03403744]
[1732644756197,12.65503744,228.48,228.41,16.6366]
[1732644756499,12.65503744,228.47,228.41,16.6366]
[1732644756791,5.19983868,228.48,228.42,12.65503744]
[1732644757092,12.65503744,228.47,228.41,16.6366]
[1732644757463,17.03213744,228.46,228.29,17.1615816]
[1732644757669,12.65503744,228.42,228.34,12.65503744]
[1732644758276,12.65503744,228.41,228.33,12.65503744]
[1732644758578,12.65503744,228.37,228.29,17.1615816]
[1732644758872,12.65503744,228.37,228.29,29.81661904]
[1732644759276,12.65503744,228.37,228.29,17.1615816]
[1732644759491,4.379,228.36,228.29,29.81661904]
[1732644759695,12.65503744,228.35,228.29,29.81661904]
[1732644759873,4.379,228.36,228.29,29.81661904]
[1732644760199,12.65503744,228.39,228.32,12.65503744]
[1732644760395,4.3782,228.4,228.33,12.65503744]
[1732644760695,4.378,228.42,228.36,12.65503744]
[1732644760874,4.378,228.42,228.37,12.65503744]
[1732644761492,4.378,228.42,228.36,12.65503744]
[1732644761692,4.378,228.42,228.38,12.65503744]
[1732644761894,4.378,228.42,228.35,12.65503744]
[1732644762975,4.378,228.42,228.36,12.65503744]
[1732644763191,12.65503744,228.4,228.3,4.38]
[1732644763389,12.65503744,228.4,228.33,12.65503744]
[1732644763588,12.65503744,228.4,228.3,4.38]
[1732644763589,4.378,228.42,228.37,12.65503744]
[1732644763886,4.378,228.42,228.38,12.65503744]
[1732644764292,4.3775,228.44,228.38,12.65503744]
[1732644764593,4.3775,228.44,228.33,4.3795]
[1732644764594,17.03253744,228.44,228.37,12.65503744]
[1732644765297,12.65503744,228.39,228.32,12.65503744]
[1732644765676,12.65503744,228.38,228.31,12.65503744]
[1732644766398,4.3788,228.37,228.31,12.65503744]
[1732644767890,4.3788,228.37,228.33,12.65503744]
[1732644768191,4.3779,228.42,228.36,12.65503744]
[1732644768390,17.03293744,228.42,228.35,12.65503744]
[1732644768576,4.3779,228.42,228.36,12.65503744]
[1732644768771,17.03293744,228.42,228.35,12.65503744]
[1732644769711,4.3779,228.42,228.36,12.65503744]
[1732644769999,12.65503744,228.41,228.34,12.65503744]
[1732644770889,17.03293744,228.42,228.35,12.65503744]
[1732644771398,17.533216,228.43,228.41,12.65503744]
[1732644771598,4.3767,228.48,228.42,12.65503744]
[1732644771776,12.65503744,228.43,228.35,12.65503744]
[1732644771981,12.65503744,228.42,228.35,12.65503744]
[1732644772294,12.65503744,228.43,228.36,12.65503744]
[1732644772610,12.65503744,228.44,228.37,12.65503744]
[1732644773091,4.3777,228.43,228.37,12.65503744]
[1732644773290,4.3777,228.43,228.38,12.65503744]
[1732644774599,12.65503744,228.4,228.3,4.3802]
[1732644774788,12.65503744,228.39,228.33,12.65503744]
[1732644775902,4.3786,228.38,228.32,12.65503744]
[1732644776081,17.03343744,228.4,228.34,12.65503744]
[1732644777279,17.03343744,228.4,228.33,12.65503744]
[1732644777881,17.03343744,228.4,228.34,12.65503744]
[1732644778189,17.03213744,228.46,228.39,12.65503744]
[1732644778387,4.3771,228.46,228.41,12.65503744]
[1732644778686,4.3771,228.46,228.42,12.65503744]
[1732644778903,4.3771,228.46,228.4,12.65503744]
[1732644779382,4.3771,228.46,228.37,15.0813]
[1732644779383,4.3771,228.46,228.41,12.65503744]
[1732644779585,4.3771,228.46,228.4,12.65503744]
[1732644779795,17.03213744,228.46,228.39,12.65503744]
[1732644780003,12.65503744,228.45,228.38,12.65503744]
[1732644780187,12.65503744,228.44,228.37,27.73633744]
[1732644780707,12.65503744,228.44,228.37,15.0813]
[1732644781402,17.03263744,228.44,228.37,27.73633744]
[1732644781991,4.3776,228.44,228.38,12.15503744]
[1732644782291,12.65503744,228.43,228.36,12.65503744]
[1732644782500,12.65503744,228.39,228.32,12.65503744]
[1732644782692,12.65503744,228.4,228.33,12.65503744]
[1732644782885,12.65503744,228.41,228.34,12.65503744]
[1732644783088,12.65503744,228.41,228.3,4.3802]
[1732644783089,4.3776,228.44,228.39,12.65503744]
[1732644783417,12.65503744,228.46,228.38,12.65503744]
[1732644783586,12.65503744,228.43,228.37,12.65503744]
[1732644783785,12.65503744,228.45,228.38,12.65503744]
[1732644783991,4.377,228.47,228.41,12.65503744]
[1732644784196,4.377,228.47,228.32,15.3293]
[1732644784197,7.42623787,228.48,228.43,12.65503744]
[1732644784492,11.80303787,228.48,228.43,12.65503744]
[1732644784901,4.3768,228.48,228.42,12.65503744]
[1732644785224,4.3768,228.48,228.39,12.65503744]
[1732644785225,12.65503744,228.46,228.39,12.65503744]
[1732644785893,12.65503744,228.46,228.38,4.3786]
[1732644785894,12.65503744,228.42,228.37,6.525]
[1732644786094,22.74483787,228.48,228.29,11.4758816]
[1732644786095,12.65503744,228.38,228.32,6.525]
[1732644786512,12.65503744,228.4,228.32,19.18003744]
[1732644787010,12.65503744,228.39,228.32,19.18003744]
[1732644787212,12.65503744,228.37,228.29,13.18001904]
[1732644787417,12.65503744,228.36,228.29,0.5249816]
[1732644787796,12.65503744,228.38,228.31,12.65503744]
[1732644787996,12.65503744,228.37,228.29,13.18001904]
[1732644788211,12.65503744,228.36,228.29,13.18001904]
[1732644789214,12.65503744,228.35,228.29,0.5249816]
[1732644789406,4.3794,228.34,228.29,0.5249816]
[1732644789601,17.03443744,228.34,228.29,0.5249816]
[1732644789801,4.3794,228.34,228.29,0.5249816]
[1732644790597,17.03443744,228.34,228.29,0.5249816]
[1732644790805,17.03423744,228.36,228.29,13.18001904]
[1732644791003,17.03423744,228.36,228.31,12.65503744]
[1732644791004,4.3792,228.36,228.31,12.65503744]
[1732644791204,23.60173744,228.38,228.31,12.65503744]
[1732644791419,17.03383744,228.37,228.3,12.65503744]
[1732644792227,17.03383744,228.37,228.29,0.5249816]
[1732644792228,4.3788,228.37,228.32,12.65503744]
[1732644792726,4.3788,228.37,228.31,12.65503744]
[1732644792899,3.3788,228.37,228.32,12.65503744]
[1732644793216,4.378,228.41,228.35,12.65503744]
[1732644793421,17.03303744,228.41,228.34,12.65503744]
[1732644793629,17.03303744,228.41,228.33,12.65503744]
[1732644794395,12.65503744,228.4,228.32,12.65503744]
[1732644794594,4.3784,228.39,228.33,12.65503744]
[1732644795724,4.3784,228.39,228.34,12.65503744]
[1732644796101,4.378,228.41,228.35,12.65503744]
[1732644796319,4.378,228.41,228.3,4.3802]
[1732644796621,4.378,228.41,228.33,12.65503744]
[1732644796622,17.03303744,228.41,228.33,12.65503744]
[1732644797628,17.03303744,228.41,228.34,12.65503744]
[1732644797920,17.03303744,228.41,228.33,12.65503744]
[1732644798628,17.03303744,228.41,228.34,12.65503744]
[1732644799631,19.45863155,228.47,228.29,0.5249816]
[1732644799632,12.65503744,228.44,228.37,12.65503744]
[1732644799835,4.3771,228.46,228.41,12.65503744]
[1732644800006,4.3769,228.47,228.41,12.65503744]
[1732644800335,7.42623787,228.48,228.43,12.65503744]
[1732644800501,7.42623787,228.48,228.42,12.65503744]
[1732644800700,20.08127531,228.48,228.4,12.65503744]
[1732644800915,12.65503744,228.47,228.4,12.65503744]
[1732644801105,12.65503744,228.42,228.35,12.65503744]
[1732644801302,12.65503744,228.42,228.32,12.65503744]
[1732644801303,12.65503744,228.39,228.32,12.65503744]
[1732644801729,4.378,228.42,228.3,23.36413744]
[1732644801730,12.65503744,228.38,228.3,23.36413744]
[1732644802026,12.65503744,228.39,228.32,12.65503744]
[1732644802213,12.65503744,228.39,228.31,12.65503744]
[1732644802809,12.65503744,228.37,228.3,18.98393744]
[1732644803126,12.65503744,228.37,228.29,29.16341904]
[1732644803334,4.379,228.36,228.29,29.16341904]
[1732644804119,4.379,228.36,228.3,12.65503744]
[1732644804512,4.379,228.36,228.29,29.16341904]
[1732644804918,17.03403744,228.36,228.29,29.16341904]
[1732644805127,12.65503744,228.33,228.29,0.5249816]
[1732644805437,12.65503744,228.32,228.29,0.5249816]
[1732644805949,12.65503744,228.33,228.29,0.5249816]
[1732644806317,4.3798,228.32,228.29,0.5249816]
[1732644811158,12.65503744,228.39,228.31,12.65503744]
[1732644811356,9.48445929,228.41,228.34,12.65503744]
[1732644811652,4.378,228.41,228.35,12.65503744]
[1732644811850,4.378,228.41,228.36,12.65503744]
[1732644812059,4.378,228.41,228.35,12.65503744]
[1732644812219,17.03303744,228.41,228.34,12.65503744]
[1732644812922,12.65503744,228.39,228.31,15.8409]
[1732644813114,12.65503744,228.39,228.31,28.49593744]
[1732644813541,12.65503744,228.38,228.31,15.8409]
[1732644814431,4.3788,228.37,228.31,28.49593744]
[1732644814622,4.3788,228.37,228.33,12.65503744]
[1732644815248,4.3786,228.39,228.33,12.65503744]
[1732644815442,12.65503744,228.41,228.34,12.65503744]
[1732644815736,4.3782,228.4,228.34,12.65503744]
[1732644817038,10.9437,228.45,228.33,4.3795]
[1732644817224,12.65503744,228.42,228.35,12.65503744]
[1732644817420,12.65503744,228.41,228.34,12.65503744]
[1732644817943,12.65503744,228.42,228.35,12.65503744]
[1732644818320,4.378,228.41,228.35,12.65503744]
[1732644818533,12.65503744,228.41,228.34,12.65503744]
[1732644819854,17.03293744,228.42,228.35,12.65503744]
[1732644820175,12.65503744,228.41,228.34,12.65503744]
[1732644820351,12.65503744,228.4,228.33,12.65503744]
[1732644820548,17.03323744,228.4,228.33,12.65503744]
[1732644820860,12.65503744,228.42,228.35,12.65503744]
[1732644821646,4.3773,228.46,228.41,12.65503744]
[1732644821878,14.62243216,228.47,228.36,12.65503744]
[1732644821879,14.62243216,228.47,228.45,12.65503744]
[1732644822080,3.19338344,228.46,228.37,21.9321]
[1732644822388,4.3765,228.5,228.44,12.65503744]
[1732644822671,11.80293787,228.48,228.44,12.65503744]
[1732644823052,11.80293787,228.48,228.41,12.65503744]
[1732644823248,24.45797531,228.48,228.4,12.65503744]
[1732644823962,24.45797531,228.48,228.41,12.65503744]
[1732644826047,11.80293787,228.48,228.42,12.65503744]
[1732644826621,11.80293787,228.48,228.4,4.3781]
[1732644826622,11.80293787,228.48,228.41,12.65503744]
[1732644826847,24.45797531,228.48,228.41,12.65503744]
[1732644827225,12.65503744,228.47,228.4,12.65503744]
[1732644827546,12.65503744,228.46,228.38,17.03363744]
[1732644827736,12.65503744,228.44,228.37,34.58713744]
[1732644827924,12.65503744,228.45,228.37,34.58713744]
[1732644828847,4.3775,228.44,228.37,38.96583744]
[1732644829020,4.3775,228.44,228.39,12.65503744]
[1732644829225,7.42623787,228.48,228.41,12.65503744]
[1732644829421,7.56988983,228.47,228.41,12.65503744]
[1732644829727,7.56988983,228.47,228.39,12.65503744]
[1732644829728,12.65503744,228.46,228.39,12.65503744]
[1732644830847,4.3773,228.45,228.39,12.65503744]
[1732644831824,17.03233744,228.45,228.38,12.65503744]
[1732644832028,12.65503744,228.42,228.35,12.65503744]
[1732644832362,12.65503744,228.41,228.33,17.03463744]
[1732644832854,12.65503744,228.42,228.35,12.65503744]
[1732644833146,12.65503744,228.44,228.37,12.65503744]
[1732644833348,12.65503744,228.44,228.36,12.65503744]
[1732644833530,12.65503744,228.43,228.36,12.65503744]
[1732644833730,4.3779,228.42,228.36,12.65503744]
[1732644833945,4.3779,228.42,228.35,12.65503744]
[1732644834138,17.03293744,228.42,228.35,12.65503744]
[1732644834337,12.65503744,228.38,228.32,15.8409]
[1732644834540,12.65503744,228.38,228.3,12.65503744]
[1732644834849,12.65503744,228.38,228.3,17.03513744]
[1732644835052,12.65503744,228.38,228.31,12.65503744]
[1732644835761,17.03383744,228.38,228.31,17.03493744]
[1732644836462,17.03383744,228.38,228.3,12.65503744]
[1732644836667,12.65503744,228.37,228.3,12.65503744]
[1732644836955,17.03383744,228.38,228.3,12.65503744]
[1732644837137,17.03383744,228.38,228.31,12.65503744]
[1732644837333,4.3788,228.38,228.31,12.65503744]
[1732644837931,17.03383744,228.38,228.31,12.65503744]
[1732644838454,4.3788,228.38,228.31,12.65503744]
[1732644838654,12.65503744,228.38,228.31,12.65503744]
[1732644839065,12.65503744,228.36,228.29,13.18001904]
[1732644839554,12.65503744,228.35,228.29,0.5249816]
[1732644840455,6.1499,228.42,228.3,12.65503744]
[1732644840456,12.65503744,228.38,228.3,12.65503744]
[1732644840755,4.3788,228.37,228.31,12.65503744]
[1732644842557,12.65503744,228.38,228.31,12.65503744]
[1732644842763,12.65503744,228.37,228.3,12.65503744]
[1732644843639,4.379,228.36,228.3,12.65503744]
[1732644844048,12.65503744,228.37,228.3,12.65503744]
[1732644844851,12.65503744,228.38,228.3,12.65503744]
[1732644845648,12.65503744,228.38,228.29,4.9052816]
[1732644845649,4.3788,228.37,228.32,12.65503744]
[1732644845952,4.3788,228.37,228.31,12.65503744]
[1732644846746,12.65503744,228.36,228.29,17.56031904]
[1732644846968,17.03383744,228.37,228.3,12.65503744]
[1732644847158,4.3788,228.37,228.31,12.65503744]
[1732644848552,4.3783,228.4,228.36,12.65503744]
[1732644848865,17.03253744,228.44,228.37,12.65503744]
[1732644849655,12.65503744,228.43,228.36,12.65503744]
[1732644850177,17.03273744,228.43,228.36,17.03393744]
[1732644851179,12.65503744,228.46,228.39,12.65503744]
[1732644851872,12.65503744,228.43,228.29,11.4754816]
[1732644852180,12.65503744,228.43,228.36,12.65503744]
[1732644852465,4.3779,228.42,228.36,12.65503744]
[1732644852969,12.65503744,228.43,228.36,12.65503744]
[1732644852970,4.3777,228.43,228.36,17.03393744]
[1732644853375,4.3777,228.43,228.37,12.65503744]
[1732644853672,4.3777,228.43,228.38,12.65503744]
[1732644853976,12.65503744,228.41,228.29,0.5249816]
[1732644854157,12.65503744,228.34,228.29,0.5249816]
[1732644854861,12.65503744,228.3,228.29,0.5249816]
[1732644855175,20.0,228.23,228.08,41.24333839]
[1732644855352,12.65503744,228.16,228.08,12.65503744]
[1732644856058,12.65503744,228.16,228.08,17.03933744]
[1732644856265,12.65503744,228.16,228.06,0.5249816]
[1732644856266,12.65503744,228.16,228.07,12.65503744]
[1732644856877,12.65503744,228.19,228.12,12.65503744]
[1732644857084,4.3807,228.27,228.14,12.65503744]
[1732644857246,3.18239385,228.26,228.16,12.65503744]
[1732644857446,12.65503744,228.24,228.16,12.65503744]
[1732644858052,12.65503744,228.24,228.15,4.383]
[1732644858253,12.65503744,228.22,228.15,4.383]
[1732644858475,12.65503744,228.22,228.14,6.3375]
[1732644858862,12.65503744,228.22,228.14,18.99253744]
[1732644859377,12.65503744,228.15,228.1,16.2964]
[1732644859759,12.65503744,228.14,228.1,16.2964]
[1732644859954,12.65503744,228.11,228.06,0.5249816]
[1732644860262,12.65503744,228.1,228.06,0.5249816]
[1732644860765,12.65503744,228.07,228.06,0.5249816]
[1732644860972,12.65503744,228.08,228.06,0.5249816]
[1732644862378,20.3127229,228.11,228.06,0.5249816]
[1732644862762,20.3127229,228.12,228.06,4.9096816]
[1732644862960,20.3127229,228.11,228.06,0.5249816]
[1732644863369,20.3127229,228.12,228.06,0.5249816]
[1732644863564,20.3127229,228.13,228.06,0.5249816]
[1732644863762,20.3127229,228.12,228.06,0.5249816]
[1732644863987,20.3127229,228.08,228.06,0.5249816]
[1732644864188,20.3127229,228.09,228.06,0.5249816]
[1732644864366,20.3127229,228.08,228.06,0.5249816]
[1732644865682,4.3828,228.16,228.06,20.8377045]
[1732644865863,4.3823,228.19,228.06,25.2223045]
[1732644866065,20.3127229,228.12,228.06,4.9095816]
[1732644866275,20.3127229,228.09,228.06,0.5249816]
[1732644866480,20.3127229,228.08,228.06,0.5249816]
[1732644866664,20.3127229,228.07,228.06,0.5249816]
[1732644867378,6.01103657,228.15,228.06,0.5249816]
[1732644867566,20.3127229,228.08,228.06,0.5249816]
[1732644867764,20.3127229,228.07,228.06,0.5249816]
[1732644868261,20.3127229,228.08,228.06,0.5249816]
[1732644868467,20.3127229,228.07,228.06,0.5249816]
[1732644869279,20.3127229,228.08,228.06,0.5249816]
[1732644869489,20.3127229,228.07,228.06,0.5249816]
[1732644870267,20.3127229,228.1,228.06,0.5249816]
[1732644870665,4.3834,228.13,228.06,0.5249816]
[1732644870666,20.3127229,228.09,228.06,0.5249816]
[1732644871266,20.3127229,228.1,228.06,0.5249816]
[1732644871786,20.3127229,228.09,228.06,0.5249816]
[1732644872381,20.3127229,228.1,228.06,0.5249816]
[1732644872580,20.3127229,228.09,228.06,0.5249816]
[1732644872775,20.3127229,228.08,228.06,0.5249816]
[1732644873282,20.3127229,228.09,228.06,0.5249816]
[1732644874288,20.3127229,228.08,228.06,0.5249816]
[1732644874500,20.3127229,228.1,228.06,0.5249816]
[1732644875195,20.3127229,228.09,228.06,0.5249816]
[1732644875401,20.3127229,228.1,228.06,4.9096816]
[1732644875573,20.3127229,228.12,228.06,0.5249816]
[1732644875886,20.3127229,228.11,228.06,4.9096816]
[1732644876077,20.3127229,228.13,228.06,25.2224045]
[1732644876491,20.3127229,228.16,228.09,20.3127229]
[1732644876790,20.3127229,228.17,228.1,20.3127229]
[1732644877295,20.3127229,228.17,228.1,26.4152229]
[1732644877474,20.3127229,228.17,228.1,30.7991229]
[1732644877674,24.6952229,228.18,228.11,20.3127229]
[1732644878284,20.3127229,228.17,228.1,30.7991229]
[1732644878985,20.3127229,228.16,228.1,10.4864]
[1732644879176,20.3127229,228.15,228.1,6.1025]
[1732644879889,20.3127229,228.14,228.1,6.1025]
[1732644880070,20.3127229,228.12,228.1,6.1025]
[1732644880271,20.3127229,228.12,228.09,15.456]
[1732644880891,20.3127229,228.13,228.09,15.456]
[1732644881389,20.3127229,228.15,228.09,40.1528229]
[1732644881568,20.3127229,228.15,228.09,15.456]
[1732644881982,24.6957229,228.15,228.09,15.456]
[1732644882197,20.3127229,228.17,228.1,20.3127229]
[1732644882495,20.3127229,228.16,228.09,35.7687229]
[1732644883196,20.3127229,228.16,228.09,40.1528229]
[1732644883700,20.3127229,228.17,228.1,20.3127229]
[1732644883991,20.3127229,228.2,228.13,20.3127229]
[1732644884391,12.68502754,228.19,228.12,12.68502754]
[1732644884584,12.68502754,228.18,228.11,12.68502754]
[1732644884773,12.68502754,228.17,228.1,12.68502754]
[1732644884977,12.68502754,228.16,228.09,32.52512754]
[1732644885176,12.68502754,228.17,228.1,12.68502754]
[1732644885975,4.3817,228.22,228.09,19.8401]
[1732644885976,12.68502754,228.18,228.11,12.68502754]
[1732644886602,12.68502754,228.21,228.14,12.68502754]
[1732644886894,19.01881914,228.23,228.12,12.68502754]
[1732644886895,12.68502754,228.19,228.12,12.68502754]
[1732644887275,12.68502754,228.2,228.13,12.68502754]
[1732644887677,12.68502754,228.18,228.1,23.64512754]
[1732644887976,12.68502754,228.18,228.11,4.3838]
[1732644888172,12.68502754,228.19,228.12,12.68502754]
[1732644888595,12.68502754,228.21,228.14,12.68502754]
[1732644889297,12.68502754,228.2,228.13,12.68502754]
[1732644889500,12.68502754,228.19,228.11,15.3434]
[1732644889703,12.68502754,228.2,228.12,12.68502754]
[1732644889889,12.68502754,228.2,228.13,12.68502754]
[1732644890088,12.68502754,228.2,228.11,10.9596]
[1732644890089,12.68502754,228.21,228.14,12.68502754]
[1732644890575,12.68502754,228.22,228.14,12.68502754]
[1732644890990,12.68502754,228.22,228.15,12.68502754]
[1732644891187,12.68502754,228.22,228.11,15.9596]
[1732644891188,14.63731914,228.23,228.16,19.22992754]
[1732644891473,6.15632076,228.3,228.16,19.22992754]
[1732644891474,12.68502754,228.27,228.2,28.38272754]
[1732644891874,12.68502754,228.3,228.23,12.68502754]
[1732644892096,12.68502754,228.31,228.24,12.68502754]
[1732644892301,12.68502754,228.32,228.25,12.68502754]
[1732644893297,12.68502754,228.34,228.27,17.06572754]
[1732644893684,12.68502754,228.33,228.26,17.06592754]
[1732644893995,12.68502754,228.31,228.24,12.68502754]
[1732644894296,15.3252,228.38,228.27,12.68502754]
[1732644894500,12.68502754,228.34,228.27,12.68502754]
[1732644894807,12.68502754,228.33,228.26,12.68502754]
[1732644895313,12.68502754,228.33,228.26,17.06582754]
[1732644895681,12.68502754,228.34,228.26,17.06582754]
[1732644895985,12.68502754,228.35,228.28,12.68502754]
[1732644896183,12.68502754,228.36,228.29,12.68502754]
[1732644896389,4.3782,228.4,228.32,12.68502754]
[1732644896609,17.06302754,228.42,228.34,12.68502754]
[1732644896809,12.68502754,228.42,228.35,12.68502754]
[1732644897194,12.68502754,228.42,228.34,12.68502754]
[1732644897411,12.68502754,228.43,228.36,12.68502754]
[1732644897629,12.68502754,228.43,228.35,17.06422754]
[1732644898317,12.68502754,228.43,228.36,12.68502754]
[1732644898522,12.68502754,228.42,228.35,12.68502754]
[1732644898811,12.68502754,228.42,228.31,20.0775]
[1732644898812,12.68502754,228.38,228.31,28.38272754]
[1732644899117,12.68502754,228.4,228.32,12.68502754]
[1732644899299,12.68502754,228.38,228.31,15.6977]
[1732644899499,17.06352754,228.39,228.32,12.68502754]
[1732644900924,12.68502754,228.4,228.33,12.68502754]
[1732644901100,12.68502754,228.41,228.34,12.68502754]
[1732644901303,12.68502754,228.43,228.35,12.68502754]
[1732644901514,17.06232754,228.45,228.37,12.68502754]
[1732644901821,17.06202754,228.47,228.4,12.68502754]
[1732644902008,17.06202754,228.47,228.31,20.0776]
[1732644902009,11.80293787,228.48,228.42,12.68502754]
[1732644902198,7.42623787,228.48,228.43,12.68502754]
[1732644902529,11.80293787,228.48,228.41,12.68502754]
[1732644902705,24.48796541,228.48,228.4,19.25042754]
[1732644903020,12.68502754,228.45,228.34,6.5654]
[1732644903205,12.68502754,228.47,228.39,12.68502754]
[1732644903525,4.3771,228.46,228.39,12.68502754]
[1732644903699,12.68502754,228.45,228.38,12.68502754]
[1732644903896,20.11126541,228.48,228.41,12.68502754]
[1732644904202,7.42623787,228.48,228.45,12.68502754]
[1732644904528,7.42623787,228.48,228.42,27.84282754]
[1732644904721,12.68502754,228.43,228.36,15.1578]
[1732644904917,17.95925863,228.48,228.36,15.1578]
[1732644905226,12.6473,228.44,228.34,12.68502754]
[1732644905423,23.776884,228.46,228.36,12.68502754]
[1732644905627,12.68502754,228.43,228.35,12.68502754]
[1732644906204,12.68502754,228.42,228.34,12.68502754]
[1732644906422,12.68502754,228.43,228.36,12.68502754]
[1732644906626,12.68502754,228.42,228.35,12.68502754]
[1732644906928,12.68502754,228.43,228.36,12.68502754]
[1732644907103,12.68502754,228.42,228.35,12.68502754]
[1732644907720,12.68502754,228.41,228.33,12.68502754]
[1732644908024,4.3779,228.42,228.25,32.84282754]
[1732644908025,12.68502754,228.34,228.25,15.1578]
[1732644908205,12.68502754,228.32,228.25,27.84282754]
[1732644908405,15.3226,228.42,228.25,27.84282754]
[1732644908406,12.68502754,228.33,228.25,27.84282754]
[1732644908604,12.68502754,228.32,228.25,27.84282754]
[1732644909004,12.68502754,228.31,228.25,15.1578]
[1732644909231,12.68502754,228.26,228.19,15.1578]
[1732644909409,17.06612754,228.25,228.19,15.1578]
[1732644909609,12.68502754,228.26,228.19,27.84282754]
[1732644909817,4.3809,228.27,228.21,12.68502754]
[1732644910109,4.3809,228.27,228.19,15.1578]
[1732644910110,12.68502754,228.26,228.2,12.68502754]
[1732644910299,12.68502754,228.22,228.19,15.1578]
[1732644910518,12.68502754,228.22,228.14,27.84282754]
[1732644911002,12.68502754,228.24,228.16,12.68502754]
[1732644911534,4.3815,228.23,228.16,12.68502754]
[1732644911907,4.3815,228.23,228.17,12.68502754]
[1732644912320,20.29009433,228.24,228.17,20.29009433]
[1732644912841,20.29009433,228.2,228.14,15.1578]
[1732644913002,20.29009433,228.19,228.14,15.1578]
[1732644913310,0.6,228.3,228.14,15.1578]
[1732644913311,20.29009433,228.2,228.14,15.1578]
[1732644914312,4.3823,228.19,228.14,15.1578]
[1732644915633,20.29009433,228.18,228.14,15.1578]
[1732644915813,20.29009433,228.18,228.11,20.29009433]
[1732644915814,20.29009433,228.17,228.1,20.29009433]
[1732644916016,20.29009433,228.18,228.11,20.29009433]
[1732644916411,20.29009433,228.19,228.11,20.29009433]
[1732644916738,4.3821,228.2,228.14,20.29009433]
[1732644916927,24.67219433,228.2,228.13,20.29009433]
[1732644917434,4.3821,228.2,228.14,20.29009433]
[1732644917911,4.3821,228.2,228.15,20.29009433]
[1732644918727,20.29009433,228.23,228.15,20.29009433]
[1732644918929,20.29009433,228.23,228.16,20.29009433]
[1732644919142,4.3807,228.27,228.19,20.29009433]
[1732644919340,4.3807,228.27,228.22,20.29009433]
[1732644919640,20.29009433,228.26,228.2,20.29009433]
[1732644920152,24.67079433,228.27,228.2,20.29009433]
[1732644920923,4.3807,228.27,228.23,20.29009433]
[1732644921128,4.3798,228.32,228.26,20.29009433]
[1732644921329,4.3798,228.32,228.19,26.641]
[1732644921543,4.379,228.36,228.3,20.29009433]
[1732644921742,4.379,228.36,228.27,20.29009433]
[1732644921743,20.29009433,228.34,228.27,20.29009433]